[Event "26th Zadar Open 2019"]
[Site "Zadar"]
[Date "2019.12.22"]
[Round "9.8"]
[White "Martinovic, Sasa"]
[Black "Bratovic, Blaz"]
[Result "1-0"]
[ECO "E90"]
[WhiteElo "2544"]
[BlackElo "2359"]
[Annotator "RC"]
[PlyCount "63"]
[EventDate "2019.12.15"]
[EventType "swiss"]
[EventCountry "CRO"]
[SourceTitle "playchess.com"]
[Source "ChessBase"]
[SourceQuality "1"]
[TimeControl "40/5400+30:1800+30"]

1. d4 {[%emt 0:00:30]} Nf6 {[%emt 0:06:30]} 2. c4 {[%emt 0:00:00]} g6 {[%emt 0:00:30]} 3. Nc3 {[%emt 0:00:00]} Bg7 {[%emt 0:00:30]} 4. e4 {[%emt 0:00:00]} d6 {[%emt 0:00:00]} 5. h3 {[%emt 0:00:00]} O-O {[%emt 0:00:00]} 6. Be3 {[%emt 0:00:00]} e5 {[%emt 0:00:00]} 7. d5 {[%emt 0:00:00]} Na6 {[%emt 0:00:00]} 8. Nf3 {[%emt 0:01:30]} Nh5 {[%emt 0:00:30]} 9. a3 {[%emt 0:02:30]} f5 {[%emt 0:08:30]} 10. b4 {[%emt 0:00:30]} c5 {[%emt 0:02:30]} 11. dxc6 {[%emt 0:00:00]} bxc6 {[%emt 0:00:00]} 12. Qa4 {[%emt 0:03:00]} Nc7 {[%emt 0:12:00]} 13. Rd1 {[%emt 0:05:30]} Bb7 {[%emt 0:07:30]} 14. Be2 {[%emt 0:07:30]} Nf4 {[%emt 0:01:30]} 15. O-O {[%emt 0:11:30]} fxe4 {[%emt 0:07:30]} 16. Nd2 {[%emt 0:00:00]} c5 {[%emt 0:00:00]} 17. bxc5 {[%emt 0:06:00]} dxc5 {[%emt 0:03:00]} 18. Bg4 {[%emt 0:13:30]} h5 {[%emt 0:04:30]} 19. Ndxe4 {[%emt 0:00:30]} Qh4 {[%emt 0:00:30]} 20. g3 {[%emt 0:05:30]} Nxh3+ {[%emt 0:00:30]} 21. Bxh3 {[%emt 0:00:00]} Qxh3 {[%emt 0:00:30]} 22. Qd7 {[%emt 0:00:00]} Qxd7 {[%emt 0:19:30]} 23. Rxd7 {[%emt 0:00:00]} Bxe4 {[%emt 0:00:00]} 24. Nxe4 {[%emt 0:00:00]} Ne6 {[%emt 0:00:00]} 25. Rb1 {[%emt 0:11:30]} Rf7 {[%emt 0:01:30]} 26. Rxf7 {[%emt 0:07:30]} Kxf7 {[%emt 0:00:30]} 27. Rb7+ {[%emt 0:01:30]} Kg8 {[%emt 0:00:30]} 28. Kg2 {[%emt 0:00:30]} a5 {[%emt 0:00:30]} 29. a4 {[%emt 0:00:30]} Ra6 {[%emt 0:01:30]} 30. Bd2 {[%emt 0:04:30]} Nd4 {[%emt 0:00:30]} 31. Rc7 {[%emt 0:02:12]} Rc6 {[%emt 0:01:30]} 32. Ra7 {[%emt 0:04:54]} 1-0

[Event "26th Zadar Open 2019"]
[Site "Zadar"]
[Date "2019.12.22"]
[Round "9.10"]
[White "Moksh Amit Doshi"]
[Black "Ghersinich, Enrico"]
[Result "1-0"]
[ECO "D22"]
[WhiteElo "2399"]
[BlackElo "2157"]
[Annotator "NA"]
[PlyCount "61"]
[EventDate "2019.12.15"]
[EventType "swiss"]
[EventCountry "CRO"]
[SourceTitle "playchess.com"]
[Source "ChessBase"]
[SourceQuality "1"]
[TimeControl "40/5400+30:1800+30"]

1. d4 {[%emt 0:09:30]} d5 {[%emt 0:00:30]} 2. c4 {[%emt 0:00:00]} dxc4 {[%emt 0:00:30]} 3. Nf3 {[%emt 0:00:00]} Nf6 {[%emt 0:00:30]} 4. e3 {[%emt 0:00:00]} Bg4 {[%emt 0:00:30]} 5. Bxc4 {[%emt 0:00:00]} e6 {[%emt 0:00:30]} 6. Nc3 {[%emt 0:00:30]} a6 {[%emt 0:00:30]} 7. h3 {[%emt 0:01:30]} Bh5 {[%emt 0:00:00]} 8. g4 {[%emt 0:01:30]} Bg6 {[%emt 0:00:00]} 9. Ne5 {[%emt 0:00:30]} Bd6 {[%emt 0:02:30]} 10. Qf3 {[%emt 0:05:30]} c6 {[%emt 0:00:30]} 11. Nxg6 {[%emt 0:05:30]} hxg6 {[%emt 0:00:30]} 12. e4 {[%emt 0:00:30]} Bb4 {[%emt 0:02:30]} 13. Be3 {[%emt 0:00:30]} Nbd7 {[%emt 0:06:30]} 14. Kf1 {[%emt 0:01:30]} Bxc3 {[%emt 0:14:30]} 15. bxc3 {[%emt 0:00:30]} Qa5 {[%emt 0:00:30]} 16. Kg2 {[%emt 0:03:30]} Qxc3 {[%emt 0:12:30]} 17. Rhc1 {[%emt 0:00:30]} Qa3 {[%emt 0:00:30]} 18. Rab1 {[%emt 0:01:30]} b5 {[%emt 0:02:30]} 19. Bb3 {[%emt 0:00:30]} O-O {[%emt 0:07:30]} 20. Rxc6 {[%emt 0:02:30]} a5 {[%emt 0:01:30]} 21. e5 {[%emt 0:05:30]} Nh7 {[%emt 0:05:30]} 22. Rd6 {[%emt 0:01:30]} Rfd8 {[%emt 0:05:30]} 23. Rxd7 {[%emt 0:00:30]} Rxd7 {[%emt 0:00:30]} 24. Qxa8+ {[%emt 0:00:30]} Nf8 {[%emt 0:00:30]} 25. Rc1 {[%emt 0:00:30]} a4 {[%emt 0:04:30]} 26. Rc8 {[%emt 0:00:00]} Qe7 {[%emt 0:00:30]} 27. Bg5 {[%emt 0:00:00]} Qb4 {[%emt 0:00:30]} 28. Bd2 {[%emt 0:01:30]} Qe7 {[%emt 0:00:30]} 29. Re8 {[%emt 0:00:30]} Qa3 {[%emt 0:00:30]} 30. Bc1 {[%emt 0:00:30]} Qb4 {[%emt 0:00:30]} 31. a3 {[%emt 0:00:00]} 1-0

[Event "26th Zadar Open 2019"]
[Site "Zadar"]
[Date "2019.12.22"]
[Round "9.11"]
[White "Rudolf, Michal"]
[Black "Lye, Lik Zang"]
[Result "1/2-1/2"]
[ECO "D20"]
[WhiteElo "2328"]
[BlackElo "2379"]
[Annotator "NA RC"]
[PlyCount "60"]
[EventDate "2019.12.15"]
[EventType "swiss"]
[EventCountry "CRO"]
[SourceTitle "playchess.com"]
[Source "ChessBase"]
[SourceQuality "1"]
[TimeControl "40/5400+30:1800+30"]

1. d4 {[%emt 0:00:30]} d5 {[%emt 0:00:30]} 2. c4 {[%emt 0:00:00]} dxc4 {[%emt 0:00:00]} 3. e3 {[%emt 0:00:00]} e5 {[%emt 0:00:00]} 4. Bxc4 {[%emt 0:00:30]} exd4 {[%emt 0:00:30]} 5. exd4 {[%emt 0:00:00]} Bd6 {[%emt 0:00:30]} 6. Nf3 {[%emt 0:00:00]} Nf6 {[%emt 0:00:00]} 7. O-O {[%emt 0:00:30]} O-O {[%emt 0:00:00]} 8. Nc3 {[%emt 0:00:00]} Nc6 {[%emt 0:01:30]} 9. h3 {[%emt 0:00:00]} h6 {[%emt 0:00:30]} 10. Qc2 {[%emt 0:01:30]} Nb4 {[%emt 0:01:30]} 11. Qb1 {[%emt 0:00:00]} Be6 {[%emt 0:02:30]} 12. Bxe6 {[%emt 0:01:00]} fxe6 {[%emt 0:00:30]} 13. Re1 {[%emt 0:06:30]} Qd7 {[%emt 0:03:30]} 14. a3 {[%emt 0:04:30]} Nbd5 {[%emt 0:01:30]} 15. Bd2 {[%emt 0:00:30]} Rae8 {[%emt 0:06:30]} 16. Qg6 {[%emt 0:02:30]} Ne7 {[%emt 0:07:30]} 17. Qd3 {[%emt 0:00:30]} Nf5 {[%emt 0:02:30]} 18. Rad1 {[%emt 0:05:30]} Qf7 {[%emt 0:01:30]} 19. Re2 {[%emt 0:15:30]} Qh5 {[%emt 0:18:30]} 20. Rde1 {[%emt 0:01:30]} Nh4 {[%emt 0:01:30]} 21. Nxh4 {[%emt 0:15:30]} Qxh4 {[%emt 0:00:30]} 22. Rxe6 {[%emt 0:08:30]} Ng4 {[%emt 0:16:30]} 23. f4 {[%emt 0:08:30]} Bxf4 {[%emt 0:13:30]} 24. Qc4 {[%emt 0:04:30]} Rxe6 {[%emt 0:08:32]} 25. Qxe6+ {[%emt 0:01:30]} Kh8 {[%emt 0:00:35]} 26. Bxf4 {[%emt 0:01:30]} Rxf4 {[%emt 0:01:25]} 27. hxg4 {[%emt 0:00:30]} Qf2+ {[%emt 0:00:43]} 28. Kh1 {[%emt 0:00:30]} Qh4+ {[%emt 0:00:06]} 29. Kg1 {[%emt 0:00:00]} Qf2+ {[%emt 0:00:03]} 30. Kh1 {[%emt 0:00:00]} Qh4+ {[%emt 0:00:05]} 1/2-1/2

[Event "26th Zadar Open 2019"]
[Site "Zadar"]
[Date "2019.12.22"]
[Round "9.12"]
[White "Spalir, Jernej"]
[Black "Bukal, Vladimir Jr."]
[Result "1/2-1/2"]
[ECO "A40"]
[WhiteElo "2429"]
[BlackElo "2393"]
[Annotator "NA"]
[PlyCount "83"]
[EventDate "2019.12.15"]
[EventType "swiss"]
[EventCountry "CRO"]
[SourceTitle "playchess.com"]
[Source "ChessBase"]
[SourceQuality "1"]
[TimeControl "40/5400+30:1800+30"]

1. d4 {[%emt 0:02:30]} e6 {[%emt 0:00:30]} 2. c4 {[%emt 0:00:00]} b6 {[%emt 0:00:30]} 3. e4 {[%emt 0:00:00]} Bb7 {[%emt 0:00:30]} 4. Bd3 {[%emt 0:00:30]} Bb4+ {[%emt 0:00:30]} 5. Bd2 {[%emt 0:00:30]} Bxd2+ {[%emt 0:00:30]} 6. Qxd2 {[%emt 0:00:30]} d6 {[%emt 0:06:30]} 7. Nc3 {[%emt 0:01:30]} e5 {[%emt 0:01:30]} 8. d5 {[%emt 0:04:30]} Nd7 {[%emt 0:01:30]} 9. Nge2 {[%emt 0:00:00]} Ne7 {[%emt 0:05:30]} 10. O-O {[%emt 0:04:00]} a5 {[%emt 0:00:30]} 11. b3 {[%emt 0:07:30]} Nc5 {[%emt 0:01:30]} 12. Bc2 {[%emt 0:00:30]} O-O {[%emt 0:02:30]} 13. a3 {[%emt 0:02:30]} Ba6 {[%emt 0:11:30]} 14. b4 {[%emt 0:02:30]} Nd7 {[%emt 0:00:30]} 15. Bd3 {[%emt 0:00:30]} Kh8 {[%emt 0:04:30]} 16. Ng3 {[%emt 0:04:30]} Ng6 {[%emt 0:00:30]} 17. Nce2 {[%emt 0:01:30]} Nh4 {[%emt 0:02:30]} 18. Rac1 {[%emt 0:03:30]} Bc8 {[%emt 0:01:30]} 19. Bc2 {[%emt 0:04:30]} h6 {[%emt 0:06:30]} 20. Ra1 {[%emt 0:03:30]} Nf6 {[%emt 0:06:30]} 21. Qc3 {[%emt 0:02:30]} Qe7 {[%emt 0:05:30]} 22. Rfc1 {[%emt 0:02:30]} Bd7 {[%emt 0:08:30]} 23. Bd3 {[%emt 0:01:30]} Nh7 {[%emt 0:02:30]} 24. c5 {[%emt 0:01:30]} bxc5 {[%emt 0:00:00]} 25. bxc5 {[%emt 0:00:30]} Ra7 {[%emt 0:04:00]} 26. c6 {[%emt 0:10:30]} Bc8 {[%emt 0:00:30]} 27. f4 {[%emt 0:01:30]} exf4 {[%emt 0:05:30]} 28. Nxf4 {[%emt 0:00:00]} Qg5 {[%emt 0:00:30]} 29. Rf1 {[%emt 0:00:00]} Nf6 {[%emt 0:00:30]} 30. Rab1 {[%emt 0:03:30]} Ra8 {[%emt 0:01:37]} 31. Rb5 {[%emt 0:02:30]} Qe5 {[%emt 0:09:58]} 32. Qxe5 {[%emt 0:11:30]} dxe5 {[%emt 0:00:02]} 33. Nfe2 {[%emt 0:00:00]} Ba6 {[%emt 0:01:00]} 34. Rb3 {[%emt 0:00:00]} Bxd3 {[%emt 0:00:13]} 35. Rxd3 {[%emt 0:00:00]} Ne8 {[%emt 0:00:01]} 36. Rb3 {[%emt 0:02:00]} Nd6 {[%emt 0:00:06]} 37. Nc3 {[%emt 0:00:30]} Rfb8 {[%emt 0:05:15]} 38. Rfb1 {[%emt 0:00:30]} Rxb3 {[%emt 0:00:08]} 39. Rxb3 {[%emt 0:00:00]} Kg8 {[%emt 0:03:01]} 40. Nf1 {[%emt 0:01:00]} f5 {[%emt 0:03:49]} 41. Nd2 {[%emt 0:31:30]} fxe4 {[%emt 0:30:39]} 42. Ncxe4 {[%emt 0:10:08]} 1/2-1/2

[Event "26th Zadar Open 2019"]
[Site "Zadar"]
[Date "2019.12.22"]
[Round "9.13"]
[White "Ly, Dominik"]
[Black "Rezan, Sasa"]
[Result "1/2-1/2"]
[ECO "D27"]
[WhiteElo "2220"]
[BlackElo "2415"]
[Annotator "NA"]
[PlyCount "62"]
[EventDate "2019.12.15"]
[EventType "swiss"]
[EventCountry "CRO"]
[SourceTitle "playchess.com"]
[Source "ChessBase"]
[SourceQuality "1"]
[TimeControl "40/5400+30:1800+30"]

1. Nf3 {[%emt 0:15:30]} Nf6 {[%emt 0:00:30]} 2. c4 {[%emt 0:00:30]} e6 {[%emt 0:00:30]} 3. Nc3 {[%emt 0:00:30]} d5 {[%emt 0:00:00]} 4. e3 {[%emt 0:00:30]} dxc4 {[%emt 0:03:00]} 5. Bxc4 {[%emt 0:01:30]} a6 {[%emt 0:00:30]} 6. a4 {[%emt 0:02:30]} c5 {[%emt 0:00:30]} 7. O-O {[%emt 0:03:30]} Nc6 {[%emt 0:00:30]} 8. d4 {[%emt 0:06:30]} Be7 {[%emt 0:04:30]} 9. Qe2 {[%emt 0:03:30]} cxd4 {[%emt 0:00:00]} 10. Rd1 {[%emt 0:00:30]} e5 {[%emt 0:00:00]} 11. exd4 {[%emt 0:00:30]} exd4 {[%emt 0:00:30]} 12. Nxd4 {[%emt 0:19:30]} Nxd4 {[%emt 0:00:30]} 13. Qe5 {[%emt 0:01:30]} Qd6 {[%emt 0:00:30]} 14. Qxd6 {[%emt 0:01:30]} Bxd6 {[%emt 0:00:30]} 15. Rxd4 {[%emt 0:00:30]} Bc5 {[%emt 0:00:30]} 16. Rd1 {[%emt 0:00:30]} O-O {[%emt 0:00:00]} 17. h3 {[%emt 0:03:30]} Be6 {[%emt 0:02:00]} 18. Bxe6 {[%emt 0:04:30]} fxe6 {[%emt 0:00:30]} 19. Re1 {[%emt 0:01:30]} Rad8 {[%emt 0:07:30]} 20. Be3 {[%emt 0:05:30]} Bb4 {[%emt 0:07:30]} 21. Rad1 {[%emt 0:04:30]} Rxd1 {[%emt 0:12:30]} 22. Rxd1 {[%emt 0:00:30]} Bxc3 {[%emt 0:01:30]} 23. bxc3 {[%emt 0:00:30]} Nd5 {[%emt 0:00:00]} 24. Bd4 {[%emt 0:00:00]} Rc8 {[%emt 0:00:00]} 25. Rc1 {[%emt 0:03:40]} Rc4 {[%emt 0:04:30]} 26. a5 {[%emt 0:00:16]} Nc7 {[%emt 0:08:30]} 27. Be5 {[%emt 0:03:42]} Rc5 {[%emt 0:05:30]} 28. Bd6 {[%emt 0:01:37]} Rc6 {[%emt 0:01:30]} 29. Be5 {[%emt 0:00:10]} Rc5 {[%emt 0:08:30]} 30. Bd6 {[%emt 0:00:10]} Rc6 {[%emt 0:02:30]} 31. Be5 {[%emt 0:00:12]} Rc5 {[%emt 0:05:30]} 1/2-1/2

[Event "26th Zadar Open 2019"]
[Site "Zadar"]
[Date "2019.12.22"]
[Round "9.15"]
[White "Plenkovic, Zdenko"]
[Black "Krasteva, Beloslava"]
[Result "1-0"]
[ECO "B80"]
[WhiteElo "2355"]
[BlackElo "2264"]
[Annotator "NA"]
[PlyCount "101"]
[EventDate "2019.12.15"]
[EventType "swiss"]
[EventCountry "CRO"]
[SourceTitle "playchess.com"]
[Source "ChessBase"]
[SourceQuality "1"]
[TimeControl "40/5400+30:1800+30"]

1. e4 {[%emt 0:05:30]} c5 {[%emt 0:00:30]} 2. Nf3 {[%emt 0:00:00]} d6 {[%emt 0:00:30]} 3. d4 {[%emt 0:00:00]} cxd4 {[%emt 0:00:00]} 4. Nxd4 {[%emt 0:00:30]} Nf6 {[%emt 0:00:00]} 5. Nc3 {[%emt 0:00:00]} a6 {[%emt 0:00:30]} 6. Be3 {[%emt 0:00:00]} e6 {[%emt 0:00:30]} 7. Qd2 {[%emt 0:03:30]} b5 {[%emt 0:02:30]} 8. f3 {[%emt 0:01:30]} Nbd7 {[%emt 0:01:30]} 9. O-O-O {[%emt 0:06:30]} Bb7 {[%emt 0:01:30]} 10. g4 {[%emt 0:09:30]} Nb6 {[%emt 0:01:30]} 11. g5 {[%emt 0:10:30]} Nfd7 {[%emt 0:00:30]} 12. Bd3 {[%emt 0:01:30]} b4 {[%emt 0:08:30]} 13. Nce2 {[%emt 0:02:30]} d5 {[%emt 0:03:30]} 14. Ng3 {[%emt 0:02:30]} Ne5 {[%emt 0:04:30]} 15. f4 {[%emt 0:02:30]} Nec4 {[%emt 0:02:30]} 16. Bxc4 {[%emt 0:01:30]} Nxc4 {[%emt 0:01:30]} 17. Qf2 {[%emt 0:04:30]} Qa5 {[%emt 0:06:30]} 18. Kb1 {[%emt 0:01:30]} dxe4 {[%emt 0:05:30]} 19. f5 {[%emt 0:02:30]} Bd5 {[%emt 0:02:30]} 20. Nb3 {[%emt 0:00:00]} Qc7 {[%emt 0:01:30]} 21. Rhe1 {[%emt 0:04:00]} a5 {[%emt 0:11:30]} 22. Bf4 {[%emt 0:02:30]} Bd6 {[%emt 0:00:30]} 23. Bxd6 {[%emt 0:07:30]} Nxd6 {[%emt 0:00:30]} 24. fxe6 {[%emt 0:00:30]} fxe6 {[%emt 0:01:30]} 25. Qc5 {[%emt 0:04:30]} Qxc5 {[%emt 0:05:30]} 26. Nxc5 {[%emt 0:00:30]} O-O-O {[%emt 0:00:30]} 27. a3 {[%emt 0:05:30]} bxa3 {[%emt 0:01:30]} 28. b3 {[%emt 0:00:30]} Rhe8 {[%emt 0:11:30]} 29. Ka2 {[%emt 0:02:44]} Bc6 {[%emt 0:07:34]} 30. Kxa3 {[%emt 0:03:03]} Nb5+ {[%emt 0:02:43]} 31. Kb2 {[%emt 0:00:05]} Nd4 {[%emt 0:04:00]} 32. Ngxe4 {[%emt 0:02:05]} Kb8 {[%emt 0:04:46]} 33. Ra1 {[%emt 0:04:30]} Nf3 {[%emt 0:00:54]} 34. Re3 {[%emt 0:04:19]} Nxh2 {[%emt 0:02:39]} 35. Rxa5 {[%emt 0:03:28]} Ng4 {[%emt 0:02:38]} 36. Rc3 {[%emt 0:00:22]} Bxe4 {[%emt 0:01:08]} 37. Rb5+ {[%emt 0:00:11]} Ka8 {[%emt 0:01:21]} 38. Rc4 {[%emt 0:00:33]} Re7 {[%emt 0:00:46]} 39. Rxe4 {[%emt 0:00:40]} Nf2 {[%emt 0:00:19]} 40. Ra4+ {[%emt 0:00:03]} Ra7 {[%emt 0:00:17]} 41. Rxa7+ {[%emt 0:30:08]} Kxa7 {[%emt 0:29:59]} 42. Rb7+ {[%emt 0:00:21]} Ka8 {[%emt 0:00:13]} 43. Rxg7 {[%emt 0:00:00]} e5 {[%emt 0:00:00]} 44. Rf7 {[%emt 0:00:00]} Nd1+ {[%emt 0:00:00]} 45. Ka3 {[%emt 0:00:00]} Rg8 {[%emt 0:00:00]} 46. Ne4 {[%emt 0:00:00]} Ne3 {[%emt 0:00:00]} 47. c3 {[%emt 0:00:00]} Nc2+ {[%emt 0:00:00]} 48. Kb2 {[%emt 0:00:00]} Ne1 {[%emt 0:00:00]} 49. Rxh7 {[%emt 0:00:00]} Nf3 {[%emt 0:00:00]} 50. Rh3 {[%emt 0:00:00]} Nxg5 {[%emt 0:00:00]} 51. Rg3 {[%emt 0:00:00]} 1-0

[Event "26th Zadar Open 2019"]
[Site "Zadar"]
[Date "2019.12.22"]
[Round "9.17"]
[White "Antova, Gabriela"]
[Black "Vidic, Teja"]
[Result "0-1"]
[ECO "D46"]
[WhiteElo "2314"]
[BlackElo "2221"]
[Annotator "NA"]
[PlyCount "114"]
[EventDate "2019.12.15"]
[EventType "swiss"]
[EventCountry "CRO"]
[SourceTitle "playchess.com"]
[Source "ChessBase"]
[SourceQuality "1"]
[TimeControl "40/5400+30:1800+30"]

1. d4 {[%emt 0:00:30]} d5 {[%emt 0:00:30]} 2. c4 {[%emt 0:00:00]} c6 {[%emt 0:00:00]} 3. Nf3 {[%emt 0:00:00]} Nf6 {[%emt 0:00:00]} 4. Nc3 {[%emt 0:00:00]} e6 {[%emt 0:00:00]} 5. e3 {[%emt 0:01:00]} Nbd7 {[%emt 0:00:00]} 6. Qc2 {[%emt 0:00:30]} Bd6 {[%emt 0:00:30]} 7. Bd3 {[%emt 0:00:30]} O-O {[%emt 0:00:00]} 8. O-O {[%emt 0:00:00]} dxc4 {[%emt 0:00:00]} 9. Bxc4 {[%emt 0:00:00]} b5 {[%emt 0:00:00]} 10. Be2 {[%emt 0:01:30]} Bb7 {[%emt 0:00:00]} 11. Rd1 {[%emt 0:00:30]} Qc7 {[%emt 0:01:30]} 12. e4 {[%emt 0:00:30]} e5 {[%emt 0:01:30]} 13. Bg5 {[%emt 0:02:30]} Rac8 {[%emt 0:14:30]} 14. dxe5 {[%emt 0:11:30]} Nxe5 {[%emt 0:00:30]} 15. Nd4 {[%emt 0:04:30]} Neg4 {[%emt 0:04:30]} 16. g3 {[%emt 0:00:30]} h6 {[%emt 0:09:30]} 17. Bh4 {[%emt 0:14:30]} Bc5 {[%emt 0:09:30]} 18. Bxg4 {[%emt 0:13:30]} Nxg4 {[%emt 0:00:30]} 19. Qe2 {[%emt 0:01:30]} Qb6 {[%emt 0:03:30]} 20. Qxg4 {[%emt 0:01:30]} Bxd4 {[%emt 0:00:30]} 21. Rd2 {[%emt 0:08:30]} c5 {[%emt 0:03:30]} 22. Be7 {[%emt 0:12:30]} Rfe8 {[%emt 0:02:30]} 23. Qd7 {[%emt 0:00:00]} Qc6 {[%emt 0:10:30]} 24. Qxc6 {[%emt 0:01:00]} Rxc6 {[%emt 0:00:30]} 25. Nd5 {[%emt 0:00:30]} Re6 {[%emt 0:08:30]} 26. Bxc5 {[%emt 0:02:30]} Bxc5 {[%emt 0:00:30]} 27. Nc7 {[%emt 0:00:30]} Rxe4 {[%emt 0:02:30]} 28. Nxe8 {[%emt 0:00:30]} Rxe8 {[%emt 0:00:30]} 29. Rad1 {[%emt 0:00:30]} g5 {[%emt 0:02:30]} 30. Rd8 {[%emt 0:01:30]} Bc6 {[%emt 0:07:26]} 31. Rxe8+ {[%emt 0:01:30]} Bxe8 {[%emt 0:00:04]} 32. Rd8 {[%emt 0:00:30]} Kf8 {[%emt 0:00:07]} 33. Kf1 {[%emt 0:01:30]} Ke7 {[%emt 0:01:29]} 34. Rc8 {[%emt 0:00:30]} Bb6 {[%emt 0:00:59]} 35. Ke2 {[%emt 0:00:00]} Bd7 {[%emt 0:00:38]} 36. Rb8 {[%emt 0:03:27]} b4 {[%emt 0:05:28]} 37. f3 {[%emt 0:01:45]} Be6 {[%emt 0:01:15]} 38. b3 {[%emt 0:00:54]} Kf6 {[%emt 0:03:53]} 39. Kd3 {[%emt 0:01:06]} Bd5 {[%emt 0:03:38]} 40. Ke2 {[%emt 0:01:04]} Ke5 {[%emt 0:04:13]} 41. Rh8 {[%emt 0:31:29]} Kd4 {[%emt 0:31:08]} 42. Rxh6 {[%emt 0:00:00]} Kc3 {[%emt 0:00:00]} 43. h4 {[%emt 0:00:00]} gxh4 {[%emt 0:00:00]} 44. gxh4 {[%emt 0:00:00]} Be6 {[%emt 0:00:00]} 45. h5 {[%emt 0:00:00]} Kb2 {[%emt 0:00:00]} 46. Rf6 {[%emt 0:00:00]} Bd4 {[%emt 0:00:00]} 47. Rf4 {[%emt 0:00:00]} Bc3 {[%emt 0:00:00]} 48. h6 {[%emt 0:00:00]} Kxa2 {[%emt 0:00:00]} 49. h7 {[%emt 0:00:00]} Kxb3 {[%emt 0:00:00]} 50. Ke3 {[%emt 0:00:56]} Bh8 {[%emt 0:00:00]} 51. Rd4 {[%emt 0:00:25]} a5 {[%emt 0:00:00]} 52. Rd8 {[%emt 0:00:40]} Bf6 {[%emt 0:00:00]} 53. h8=Q {[%emt 0:03:21]} Bxh8 {[%emt 0:00:00]} 54. Rxh8 {[%emt 0:00:13]} a4 {[%emt 0:00:00]} 55. Kd2 {[%emt 0:00:58]} a3 {[%emt 0:00:43]} 56. Kc1 {[%emt 0:00:18]} a2 {[%emt 0:00:27]} 57. Ra8 {[%emt 0:00:02]} Bd7 {[%emt 0:00:05]} 0-1

[Event "26th Zadar Open 2019"]
[Site "Zadar"]
[Date "2019.12.22"]
[Round "9.18"]
[White "Sinanovic, Muhamed"]
[Black "Peng, Hongchi"]
[Result "0-1"]
[ECO "A48"]
[WhiteElo "2309"]
[BlackElo "2271"]
[Annotator "NA"]
[PlyCount "68"]
[EventDate "2019.12.15"]
[EventType "swiss"]
[EventCountry "CRO"]
[SourceTitle "playchess.com"]
[Source "ChessBase"]
[SourceQuality "1"]
[TimeControl "40/5400+30:1800+30"]

1. Nf3 {[%emt 0:00:30]} g6 {[%emt 0:00:30]} 2. d4 {[%emt 0:00:30]} Bg7 {[%emt 0:00:30]} 3. Bf4 {[%emt 0:03:30]} Nf6 {[%emt 0:02:30]} 4. h3 {[%emt 0:04:30]} O-O {[%emt 0:01:30]} 5. e3 {[%emt 0:00:00]} d6 {[%emt 0:01:30]} 6. Be2 {[%emt 0:01:00]} Nfd7 {[%emt 0:03:30]} 7. c3 {[%emt 0:00:30]} e5 {[%emt 0:01:30]} 8. Bh2 {[%emt 0:00:30]} Nc6 {[%emt 0:07:30]} 9. O-O {[%emt 0:00:30]} e4 {[%emt 0:13:30]} 10. Nfd2 {[%emt 0:00:00]} f5 {[%emt 0:00:00]} 11. c4 {[%emt 0:03:00]} Nf6 {[%emt 0:03:00]} 12. Nc3 {[%emt 0:00:30]} g5 {[%emt 0:08:30]} 13. Rb1 {[%emt 0:09:30]} Ne7 {[%emt 0:05:30]} 14. b4 {[%emt 0:00:30]} Ng6 {[%emt 0:00:30]} 15. b5 {[%emt 0:08:30]} Qe7 {[%emt 0:00:30]} 16. Qc2 {[%emt 0:03:30]} b6 {[%emt 0:13:30]} 17. Rfc1 {[%emt 0:06:30]} Bb7 {[%emt 0:03:30]} 18. c5 {[%emt 0:00:30]} d5 {[%emt 0:06:30]} 19. Qb3 {[%emt 0:02:30]} Kh8 {[%emt 0:01:30]} 20. Qb4 {[%emt 0:11:30]} Qf7 {[%emt 0:02:30]} 21. Nd1 {[%emt 0:01:30]} f4 {[%emt 0:00:30]} 22. Rc3 {[%emt 0:06:30]} Bc8 {[%emt 0:11:12]} 23. Rbc1 {[%emt 0:01:30]} Ne8 {[%emt 0:03:27]} 24. a4 {[%emt 0:04:30]} Nh4 {[%emt 0:00:59]} 25. f3 {[%emt 0:05:30]} Qh5 {[%emt 0:05:47]} 26. cxb6 {[%emt 0:04:30]} axb6 {[%emt 0:00:03]} 27. Rxc7 {[%emt 0:03:24]} Nxc7 {[%emt 0:00:19]} 28. Rxc7 {[%emt 0:00:01]} Bxh3 {[%emt 0:01:49]} 29. gxh3 {[%emt 0:00:49]} exf3 {[%emt 0:00:48]} 30. Bf1 {[%emt 0:02:22]} Rae8 {[%emt 0:01:34]} 31. exf4 {[%emt 0:00:45]} gxf4 {[%emt 0:00:09]} 32. Nb3 {[%emt 0:04:28]} Qg6+ {[%emt 0:00:37]} 33. Kh1 {[%emt 0:00:45]} Re2 {[%emt 0:00:39]} 34. Re7 {[%emt 0:03:52]} Qg2+ {[%emt 0:00:10]} 0-1

[Event "26th Zadar Open 2019"]
[Site "Zadar"]
[Date "2019.12.22"]
[Round "9.20"]
[White "Zelic, Mladen"]
[Black "Guttenthaler, Franz"]
[Result "0-1"]
[ECO "C11"]
[WhiteElo "2254"]
[BlackElo "2304"]
[Annotator "NA"]
[PlyCount "72"]
[EventDate "2019.12.15"]
[EventType "swiss"]
[EventCountry "CRO"]
[SourceTitle "playchess.com"]
[Source "ChessBase"]
[SourceQuality "1"]
[TimeControl "40/5400+30:1800+30"]

1. e4 {[%emt 0:00:30]} e6 {[%emt 0:00:30]} 2. d4 {[%emt 0:00:00]} d5 {[%emt 0:00:00]} 3. Nc3 {[%emt 0:00:00]} Nf6 {[%emt 0:00:00]} 4. e5 {[%emt 0:00:00]} Nfd7 {[%emt 0:00:30]} 5. f4 {[%emt 0:00:00]} c5 {[%emt 0:00:00]} 6. Nf3 {[%emt 0:00:30]} Nc6 {[%emt 0:00:00]} 7. Bd3 {[%emt 0:00:00]} Nxd4 {[%emt 0:00:30]} 8. Nxd4 {[%emt 0:00:00]} cxd4 {[%emt 0:00:30]} 9. Ne2 {[%emt 0:00:30]} Qa5+ {[%emt 0:00:30]} 10. Bd2 {[%emt 0:02:30]} Qb6 {[%emt 0:00:30]} 11. O-O {[%emt 0:02:30]} Nc5 {[%emt 0:01:30]} 12. Be1 {[%emt 0:21:30]} Bd7 {[%emt 0:11:30]} 13. Bf2 {[%emt 0:05:30]} Nxd3 {[%emt 0:02:30]} 14. cxd3 {[%emt 0:00:30]} Bc5 {[%emt 0:02:30]} 15. b4 {[%emt 0:14:30]} Qxb4 {[%emt 0:04:30]} 16. Rb1 {[%emt 0:02:30]} Qa5 {[%emt 0:00:30]} 17. Qc1 {[%emt 0:11:30]} Rc8 {[%emt 0:03:30]} 18. f5 {[%emt 0:03:30]} exf5 {[%emt 0:04:30]} 19. Qg5 {[%emt 0:00:30]} g6 {[%emt 0:09:30]} 20. Rxb7 {[%emt 0:07:30]} Be7 {[%emt 0:06:30]} 21. Qf4 {[%emt 0:01:30]} Qa6 {[%emt 0:09:30]} 22. Rfb1 {[%emt 0:00:30]} Qxd3 {[%emt 0:01:30]} 23. Nxd4 {[%emt 0:06:50]} O-O {[%emt 0:01:30]} 24. Qh6 {[%emt 0:02:44]} Rc7 {[%emt 0:05:30]} 25. Rxc7 {[%emt 0:10:11]} Qxb1+ {[%emt 0:00:00]} 26. Rc1 {[%emt 0:00:01]} Qxa2 {[%emt 0:01:00]} 27. h4 {[%emt 0:04:18]} Rc8 {[%emt 0:04:30]} 28. e6 {[%emt 0:01:56]} Bxe6 {[%emt 0:01:30]} 29. Rxc8+ {[%emt 0:01:58]} Bxc8 {[%emt 0:00:30]} 30. Nc6 {[%emt 0:00:25]} Qb1+ {[%emt 0:06:30]} 31. Kh2 {[%emt 0:00:07]} Bd6+ {[%emt 0:00:30]} 32. Bg3 {[%emt 0:00:00]} Bxg3+ {[%emt 0:00:30]} 33. Kxg3 {[%emt 0:00:15]} Qe1+ {[%emt 0:01:30]} 34. Kh2 {[%emt 0:00:21]} Bd7 {[%emt 0:00:30]} 35. Nxa7 {[%emt 0:01:25]} Qe5+ {[%emt 0:02:30]} 36. Kh1 {[%emt 0:00:24]} Qa1+ {[%emt 0:00:00]} 0-1